bitfinex-derivatives/quotes_ETHF0:USTF0_20241129
["timestamp","ask_amount","ask_price","bid_price","bid_amount"]
[1732909307874,0.4091,3582.0,3581.5,0.27894]
[1732909308078,0.27893,3581.6,3581.5,0.27911676]
[1732909308276,0.27893,3581.6,3581.5,0.69181676]
[1732909309274,0.27893,3581.6,3581.5,0.4127]
[1732909319886,0.27893,3581.7,3581.6,0.27893]
[1732909320186,0.27893,3581.7,3581.6,1.3075309]
[1732909320582,3.2078,3582.3,3581.6,1.0286009]
[1732909320786,0.2789,3582.2,3582.1,0.27889]
[1732909321494,0.2789,3582.2,3582.1,1.13989]
[1732909322590,0.2789,3582.2,3582.1,2.1684909]
[1732909323885,0.2789,3582.2,3582.1,1.13989]
[1732909324083,0.2789,3582.2,3582.1,0.861]
[1732909324486,0.2789,3582.2,3582.1,1.1399]
[1732909324689,0.2789,3582.2,3582.1,0.861]
[1732909325088,0.2789,3582.2,3582.1,1.1399]
[1732909325288,0.2789,3582.2,3582.1,0.861]
[1732909325988,1.0286009,3582.3,3581.7,0.27892]
[1732909326284,1.4542009,3582.1,3581.5,3.2078]
[1732909326488,0.27896,3581.3,3581.2,1.3671051]
[1732909326692,0.27896,3581.3,3581.2,0.27896]
[1732909327091,0.27896,3581.3,3581.2,1.3075609]
[1732909327485,0.27895,3581.4,3581.3,0.27895]
[1732909327684,0.27896,3581.3,3581.2,1.3075609]
[1732909328093,0.27896,3581.3,3581.2,1.0286009]
[1732909328283,0.4232,3581.6,3581.1,0.8711]
[1732909328488,0.27897,3581.1,3581.0,3.2078]
[1732909329894,0.279,3580.8,3580.7,0.4252]
[1732909333097,0.27901,3580.6,3580.5,0.27907859]
[1732909334504,0.27901,3580.6,3580.5,0.16]
[1732909334697,0.27902,3580.5,3580.4,3.2078]
[1732909335004,0.27902,3580.5,3580.4,3.2978]
[1732909336096,0.27902,3580.5,3580.4,3.2078]
[1732909339798,0.27905,3580.2,3580.0,3.6357]
[1732909339999,0.27905,3580.2,3580.1,0.71725]
[1732909340203,0.27905,3580.2,3580.1,1.02725]
[1732909340496,0.27905,3580.2,3580.1,1.30646963]
[1732909340897,0.27905,3580.2,3580.1,1.02741963]
[1732909341204,0.27905,3580.2,3580.1,1.30646963]
[1732909345303,0.27904,3580.3,3580.2,0.27903]
[1732909345498,0.27904,3580.3,3580.2,0.77903]
[1732909345696,0.27904,3580.3,3580.2,0.5]
[1732909345903,0.27904,3580.3,3580.2,0.77904]
[1732909346103,0.27904,3580.3,3580.2,0.5]
[1732909347507,0.27904,3580.3,3580.2,0.77904]
[1732909348003,0.27904,3580.3,3580.2,0.5]
[1732909348502,0.27904,3580.3,3580.2,0.77904]
[1732909348705,0.27904,3580.3,3580.2,0.27904]
[1732909349105,2.12846174,3580.7,3580.0,3.2078]
[1732909349300,0.27905,3580.1,3580.0,3.2078]
[1732909352424,0.27907,3579.9,3579.8,0.27907]
[1732909352903,0.27907,3579.8,3579.7,0.55815859]
[1732909353206,0.27907,3579.8,3579.7,0.40907859]
[1732909353409,0.27907,3579.8,3579.7,0.13]
[1732909353805,0.27907,3579.8,3579.7,0.40908]
[1732909354810,0.27907,3579.8,3579.7,0.27908]
[1732909355004,0.27908,3579.7,3579.6,0.71169]
[1732909355203,0.27908,3579.7,3579.6,0.5126]
[1732909355609,0.27908,3579.7,3579.6,0.79169]
[1732909355807,1.02972271,3579.8,3579.6,0.5126]
[1732909356006,0.27908,3579.7,3579.6,0.79169]
[1732909358516,0.27908,3579.7,3579.6,0.5126]
[1732909358712,0.27908,3579.7,3579.6,0.4426]
[1732909358909,0.73188,3579.7,3579.6,0.4426]
[1732909361706,0.27908,3579.7,3579.6,0.72169]
[1732909361906,2.994,3580.4,3579.6,1.47232271]
[1732909362106,3.27303,3580.4,3580.3,0.27904]
[1732909362514,0.27903,3580.4,3580.3,0.27904]
[1732909366316,1.3098,3581.0,3580.1,1.3237]
[1732909366524,0.27901,3580.8,3580.7,0.27899]
[1732909366819,0.8647,3581.0,3580.8,0.69649]
[1732909366820,0.27899,3580.9,3580.8,0.69649]
[1732909368317,0.27899,3580.9,3580.8,1.57769]
[1732909368621,1.46372271,3581.0,3580.8,1.2987]
[1732909368918,0.27898,3581.1,3581.0,0.27898]
[1732909369323,0.4425,3581.3,3580.8,1.2987]
[1732909369518,0.27899,3581.1,3581.0,0.27897]
[1732909369819,0.27899,3581.0,3580.9,0.27899]
[1732909372225,0.27898,3581.1,3581.0,0.27897]
[1732909372724,1.02972271,3581.2,3581.1,0.27897]
[1732909372725,1.30869271,3581.2,3581.1,0.27897]
[1732909374721,0.27899,3581.1,3581.0,0.27898]
[1732909374926,0.279,3580.9,3580.8,0.27899]
[1732909375124,1.02972271,3581.2,3580.7,4.0568]
[1732909375323,0.27903,3580.4,3580.3,4.33583]
[1732909375621,1.30875271,3580.4,3580.3,4.0568]
[1732909375825,1.30875271,3580.4,3580.3,4.33584]
[1732909376723,1.30875271,3580.4,3580.3,4.35584]
[1732909376923,1.30875271,3580.4,3580.3,3.50684]
[1732909378116,0.27903,3580.4,3580.3,3.50684]
[1732909382634,0.27902,3580.5,3580.4,0.27902]
[1732909385336,0.27902,3580.5,3580.4,0.69732]
[1732909385735,0.4276,3580.6,3580.1,0.848]
[1732909385932,0.27904,3580.2,3580.1,0.11]
[1732909386137,0.27905,3580.1,3580.0,0.69736]
[1732909386438,0.72425,3580.1,3580.0,0.71736]
[1732909387135,0.4452,3580.1,3580.0,0.71736]
[1732909387527,0.27904,3580.3,3580.2,0.27903]
[1732909390832,0.4445,3580.5,3580.0,0.4183]
[1732909391046,0.27903,3580.4,3580.3,0.27903]
[1732909393744,0.27905,3580.3,3580.2,0.27904]
[1732909395841,0.27905,3580.2,3580.1,0.27905]
[1732909396044,2.12932478,3580.4,3579.9,3.6443]
[1732909396244,0.27906,3580.0,3579.9,3.2078]
[1732909396744,0.27907,3579.9,3579.8,0.27907]
[1732909402646,0.27909,3579.7,3579.6,0.27908]
[1732909402948,0.27909,3579.6,3579.5,3.48689]
[1732909403850,2.12932478,3579.6,3579.1,3.48698689]
[1732909404060,0.27912,3579.2,3579.1,3.5878]
[1732909404345,0.27912,3579.2,3578.5,0.27917]
[1732909404346,0.27918,3578.6,3578.5,0.27917]
[1732909404952,0.69787,3578.9,3578.3,3.6524]
[1732909405150,0.27918,3578.4,3578.3,3.93159]
[1732909405647,0.27918,3578.4,3578.3,3.6524]
[1732909405851,0.27918,3578.4,3578.3,3.2078]
[1732909407052,0.27918,3578.4,3578.3,3.48699]
[1732909408549,0.27918,3578.4,3578.3,3.2078]
[1732909408853,0.27918,3578.4,3578.3,3.48699]
[1732909409054,0.27918,3578.4,3578.3,3.2078]
[1732909409957,0.27918,3578.4,3578.3,3.48699]
[1732909410649,0.27918,3578.4,3578.3,3.2078]
[1732909410951,0.27918,3578.4,3578.3,3.48699]
[1732909412051,0.27918,3578.4,3578.3,3.2078]
[1732909413058,0.27919,3578.3,3578.2,0.2792]
[1732909413959,0.27918,3578.5,3578.4,0.27918]
[1732909415254,0.27916,3578.8,3578.7,0.27915]
[1732909417161,0.4168,3579.0,3578.6,0.4362]
[1732909417361,0.27915,3578.9,3578.8,0.27915]
[1732909419257,0.4168,3579.0,3578.6,0.4362]
[1732909419258,0.27914,3579.0,3578.9,0.27915]
[1732909420960,3.2078,3579.1,3578.6,0.4362]
[1732909421167,0.27916,3578.7,3578.6,0.4562]
[1732909421359,0.27916,3578.7,3578.6,0.4362]
[1732909421959,2.12932478,3578.8,3578.4,0.4479]
[1732909422161,3.48698,3578.5,3578.4,0.4479]
[1732909423560,3.2078,3578.5,3578.2,0.70199]
[1732909423758,0.27919,3578.3,3578.2,0.8328]
[1732909424158,0.27919,3578.3,3578.2,0.41]
[1732909424468,0.27919,3578.3,3578.2,1.1408]
[1732909425071,0.27919,3578.3,3578.2,0.8616]
[1732909425666,0.27919,3578.3,3578.2,0.4516]
[1732909429762,0.27919,3578.3,3578.1,0.2792]
[1732909429763,0.8645,3578.4,3578.1,0.2792]
[1732909429963,0.2792,3578.2,3578.1,0.27921]
[1732909430766,1.03080518,3578.3,3578.0,0.27926953]
[1732909430962,0.27921,3578.1,3578.0,0.27926953]
[1732909431158,0.27921,3578.1,3577.5,2.81040352]
[1732909431159,4.23860518,3578.1,3577.2,0.27926953]
[1732909431363,3.48705,3577.6,3577.5,0.4433]
[1732909432265,3.48705,3577.6,3577.3,0.4395]
[1732909432266,0.27926,3577.4,3577.3,0.4395]
[1732909432468,0.27926,3577.4,3577.3,0.6295]
[1732909434170,0.27926,3577.4,3577.3,0.90877]
[1732909434569,0.27926,3577.5,3577.4,0.27925]
[1732909434772,0.27926,3577.4,3577.3,0.4395]
[1732909435170,0.27926,3577.4,3577.3,0.71877]
[1732909435569,0.27926,3577.4,3577.3,0.4395]
[1732909437079,3.2078,3577.6,3577.0,1.14629]
[1732909437280,3.2078,3577.6,3577.0,1.68629]
[1732909437281,0.27929,3577.1,3577.0,1.68629]
[1732909438068,0.27928,3577.2,3577.1,0.27928]
[1732909438275,0.27928,3577.2,3577.1,0.42928]
[1732909438474,3.2078,3577.6,3577.1,0.15]
[1732909438773,0.27926,3577.5,3577.4,0.27926]
[1732909439276,3.2078,3577.6,3577.0,1.14648573]
[1732909439478,3.632,3578.0,3577.3,0.69818]
[1732909439679,3.632,3578.0,3577.3,0.9]
[1732909439977,3.2078,3578.4,3577.6,0.69812]
[1732909440172,3.2078,3578.4,3577.7,1.333]
[1732909440373,0.27922,3578.1,3578.0,0.2792]
[1732909441077,3.2078,3578.4,3578.2,0.27919]
[1732909441078,0.2792,3578.3,3578.2,0.27919]
[1732909442888,3.48699,3578.4,3578.3,0.27919]
[1732909443679,0.27918,3578.6,3578.5,0.27917]
[1732909445073,3.48696,3578.8,3578.7,0.27916]
[1732909445273,0.27915,3579.0,3578.9,0.27914]
[1732909445481,0.27912,3579.3,3579.2,0.27911]
[1732909446576,2.13298917,3579.4,3579.0,0.4414]
[1732909446773,0.27913,3579.1,3579.0,0.4414]
[1732909446973,0.27913,3579.1,3579.0,0.72054]
[1732909447782,0.70183,3579.1,3579.0,0.72054]
[1732909448874,3.48693,3579.2,3579.1,0.27913]
[1732909449475,0.27913,3579.2,3579.1,0.27913]
[1732909450084,2.41210917,3579.4,3579.3,0.27911]
[1732909450485,0.27912,3579.3,3579.2,0.27912]
[1732909450883,0.4227,3579.5,3579.3,0.27911]
[1732909450884,0.27911,3579.4,3579.3,0.27911]
[1732909451181,0.4227,3579.5,3579.2,0.27912]
[1732909451182,0.27912,3579.3,3579.2,0.27912]
[1732909454989,0.27913,3579.1,3579.0,0.4414]
[1732909455486,2.13298917,3579.4,3578.9,0.27935848]
[1732909455487,0.27914,3579.0,3578.9,0.27935848]
[1732909455682,0.72094,3579.0,3578.9,0.27935848]
[1732909456284,0.72094,3579.0,3578.9,0.55850848]
[1732909456676,2.57478917,3579.0,3578.5,3.48715848]
[1732909456881,2.57478917,3579.0,3578.0,0.8587]
[1732909456882,6.03872917,3578.6,3578.0,0.8587]
[1732909457081,3.48701,3578.1,3578.0,0.8587]
[1732909457691,3.48701,3578.1,3577.9,0.27922]
[1732909457692,3.2078,3578.1,3577.5,0.4213]
[1732909457882,0.27923,3577.9,3577.8,0.27922]
[1732909458389,3.2078,3578.1,3577.6,0.8796]
[1732909458587,3.48701,3578.1,3578.0,0.27922]
[1732909458786,0.27923,3577.9,3577.8,0.27922]
[1732909460089,0.27923,3577.9,3577.8,0.55854492]
[1732909461789,2.83100917,3578.2,3577.6,0.8796]
[1732909461988,0.27924,3577.7,3577.6,0.02]
[1732909462181,0.27925,3577.5,3577.4,3.48706]
[1732909463393,0.27925,3577.5,3577.4,3.76649654]
[1732909467694,0.429,3577.7,3577.4,0.27943654]
[1732909467888,0.27925,3577.6,3577.5,0.27925]
[1732909469095,0.27925,3577.6,3577.5,0.71735]
[1732909469696,0.27110789,3577.6,3577.5,0.71735]
[1732909470006,0.70825,3577.7,3577.6,0.27925]
[1732909472498,0.429,3577.7,3577.1,0.27928]
[1732909472803,0.27928,3577.3,3577.2,0.27927]
[1732909473298,4.33491,3577.7,3576.9,4.34835]
[1732909473500,0.27927,3577.4,3577.3,0.27926]
[1732909474100,4.33491,3577.7,3577.4,0.27925]
[1732909474101,0.27926,3577.5,3577.4,0.27925]
[1732909477897,0.4129,3578.0,3577.4,0.27925]
[1732909477898,0.27922,3578.0,3577.9,0.27921]
[1732909480404,2.58088917,3578.2,3577.8,3.2078]
[1732909480600,0.27922,3577.9,3577.8,3.2078]
[1732909480811,0.27924,3577.7,3577.6,0.27924]
[1732909482409,0.27923,3577.9,3577.8,0.27922]
[1732909482818,0.27922,3578.1,3578.0,0.27921]
[1732909483209,0.72711,3578.2,3578.1,0.27921]
[1732909483409,0.27921,3578.2,3578.1,0.27921]
[1732909483706,0.27921,3578.2,3578.1,3.48701]
[1732909484303,5.34078917,3578.2,3577.2,0.27945606]
[1732909484507,0.27927,3577.3,3577.2,0.55872606]
[1732909487301,0.8596,3577.5,3577.2,0.27945606]
[1732909487505,0.27927,3577.4,3577.3,0.27926]
[1732909487703,0.27927,3577.4,3577.3,0.71016]
[1732909494822,0.8596,3577.5,3577.2,0.27927]
[1732909494823,0.27928,3577.3,3577.2,0.27927]
[1732909495319,0.27928,3577.2,3577.1,3.48708]
[1732909495516,0.27928,3577.2,3577.1,3.56708]
[1732909495917,1.2945,3577.5,3577.1,3.2878]
[1732909496214,0.27927,3577.4,3577.3,0.27926]
[1732909502222,1.31061823,3577.4,3577.3,0.27926]
[1732909504332,1.13886,3577.5,3577.4,0.27926]
[1732909505024,0.27923,3577.9,3577.8,0.27922]
[1732909505223,2.994,3578.1,3577.9,0.27922]
[1732909505224,0.27922,3578.0,3577.9,0.27922]
[1732909505522,0.27924,3577.8,3577.7,0.27923]
[1732909505724,1.31058823,3577.8,3577.7,0.27923]
[1732909506227,0.69807,3577.9,3577.4,0.27926]
[1732909506425,0.27925,3577.5,3577.4,0.27926]
[1732909506925,0.27927,3577.4,3577.3,0.27927]
[1732909510432,0.69805,3578.0,3577.3,0.27927]
[1732909510433,0.69802,3578.2,3577.3,0.48]
[1732909510636,0.27923,3578.0,3577.9,0.27921]
[1732909510826,0.4396,3578.2,3578.1,0.27921]
[1732909511131,0.27915,3578.9,3578.8,0.27915]
[1732909511334,0.49581,3579.1,3578.7,3.2078]
[1732909511635,0.27914,3579.0,3578.9,0.27914]
[1732909511835,0.77494,3579.1,3579.0,0.27914]
[1732909512134,0.05621,3579.1,3579.0,0.27914]
[1732909515436,0.4117,3580.1,3579.9,0.27906]
[1732909516026,0.27906,3580.0,3579.9,0.4099]
[1732909517435,0.27905,3580.2,3580.0,0.27905]
[1732909517639,0.27905,3580.2,3579.9,0.4099]
[1732909517640,0.27905,3580.2,3580.1,0.27905]
[1732909518136,0.4487,3580.5,3579.9,0.8335]
[1732909518327,0.27905,3580.1,3580.0,0.27906]
[1732909518527,0.4487,3580.5,3579.9,0.8335]
[1732909518734,0.27906,3580.0,3579.9,1.11256]
[1732909518938,0.27906,3580.0,3579.9,0.8335]
[1732909519240,0.27906,3580.0,3579.9,0.68897]
[1732909520136,0.27906,3580.1,3580.0,0.27906]
[1732909520934,0.27905,3580.2,3580.1,0.27905]
[1732909521237,2.13252168,3580.6,3580.5,0.27902]
[1732909521238,0.27901,3580.6,3580.5,0.27902]
[1732909521542,0.27903,3580.4,3580.3,0.27903]
[1732909521737,0.27902,3580.5,3580.3,0.27903]
[1732909521937,0.27902,3580.5,3580.3,0.27904]
[1732909522940,0.4191,3580.7,3580.2,3.2078]
[1732909523138,0.27904,3580.3,3580.2,3.2078]
[1732909523742,0.4191,3580.7,3580.2,3.2078]
[1732909524042,0.4191,3580.7,3580.2,3.48684]
[1732909524240,0.4191,3580.7,3580.2,3.2078]
[1732909524438,0.01791,3580.9,3580.3,0.449]
[1732909524638,0.01791,3580.9,3580.5,0.27902]
[1732909524639,0.279,3580.8,3580.5,0.27902]
[1732909524841,0.279,3580.8,3580.6,0.4317]
[1732909525138,0.279,3580.7,3580.6,0.4317]
[1732909526047,0.279,3580.7,3580.6,0.71071]
[1732909526242,0.279,3580.7,3580.6,0.4317]
[1732909526639,0.279,3580.7,3580.6,0.71071]
[1732909529152,0.01791,3580.9,3580.6,0.4317]
[1732909529350,0.01791,3580.9,3580.8,0.279]
[1732909532059,0.2969,3580.9,3580.8,0.279]
[1732909532250,0.01791,3580.9,3580.6,3.6395]
[1732909532456,0.279,3580.7,3580.6,3.96851]
[1732909532655,0.2969,3580.9,3580.8,0.279]
[1732909533360,0.01791,3580.9,3580.8,0.279]
[1732909533958,0.2969,3580.9,3580.8,0.279]
[1732909534154,0.01791,3580.9,3580.8,0.279]
[1732909535358,0.01791,3580.9,3580.8,0.779]
[1732909535658,0.27897,3581.3,3581.2,0.27896]
[1732909536462,0.4088,3581.4,3581.1,3.2078]
[1732909536663,0.27897,3581.2,3581.1,3.48677]
[1732909536957,0.27897,3581.2,3581.1,3.2078]
[1732909537164,0.27897,3581.2,3581.1,3.48677]
[1732909539161,0.4088,3581.4,3581.1,3.2078]
[1732909539459,0.68776,3581.4,3581.3,0.27896]
[1732909540659,0.27896,3581.4,3581.3,0.27896]
[1732909544765,0.27894,3581.7,3581.6,0.27893]
[1732909544958,0.27894,3581.7,3581.6,3.48673]
[1732909545664,0.27894,3581.7,3581.6,3.2078]
[1732909545967,0.27894,3581.7,3581.6,3.48673]
[1732909546369,0.27894,3581.7,3581.6,3.2078]
[1732909546592,0.27894,3581.7,3581.6,3.48673]
[1732909547768,0.27894,3581.7,3581.6,3.2078]
[1732909548263,0.27896,3581.4,3581.3,0.27895]
[1732909548465,0.27896,3581.4,3581.3,0.29895]
[1732909549072,0.27895,3581.6,3581.5,0.27893]
[1732909549373,0.27894,3581.7,3581.6,0.27893]
[1732909549666,0.27894,3581.6,3581.5,0.27893]
[1732909550668,0.27894,3581.7,3581.6,0.27893]
[1732909551060,0.436,3581.8,3581.4,0.27894]
[1732909551061,0.27895,3581.5,3581.4,0.27894]
[1732909551368,0.27896,3581.4,3581.3,0.27895]
[1732909551671,0.27896,3581.4,3581.3,0.28895]
[1732909552166,0.27894,3581.7,3581.3,0.01]
[1732909552366,0.27894,3581.7,3581.6,0.27893]
[1732909554269,0.436,3581.8,3581.7,0.27893]
[1732909554270,0.71493,3581.8,3581.7,0.27893]
[1732909555871,0.27893,3581.7,3581.6,3.48673]
[1732909556071,0.27893,3581.7,3581.6,3.2078]
[1732909556395,0.27896,3581.3,3581.2,3.2078]
[1732909557470,0.27896,3581.3,3580.0,6.54932127]
[1732909557471,0.279,3580.8,3580.7,3.4868]
[1732909557774,0.279,3580.8,3580.7,3.2878]
[1732909558465,0.279,3580.8,3580.7,3.2078]
[1732909559070,0.279,3580.8,3580.7,3.4868]
[1732909559375,0.27898,3581.1,3581.0,0.27897]
[1732909560178,0.27897,3581.2,3581.1,0.27896]
[1732909560571,0.27895,3581.5,3581.4,0.27894]
[1732909561273,1.3127,3581.7,3581.1,3.2078]
[1732909561274,0.27894,3581.6,3581.5,0.27893]
[1732909561478,0.4471,3581.7,3581.1,5.34032168]
[1732909561667,0.4471,3581.7,3581.6,0.27893]
[1732909561870,0.72603,3581.7,3581.6,0.27893]
[1732909562276,0.4471,3581.7,3581.2,0.69742]
[1732909562472,0.4471,3581.7,3581.2,0.54]
[1732909562781,0.27896,3581.4,3581.3,0.27895]
[1732909564176,0.27897,3581.2,3581.1,3.48677]
[1732909564376,0.27897,3581.2,3581.1,3.2078]
[1732909564674,0.27897,3581.2,3580.8,1.246]
[1732909564675,0.27899,3581.0,3580.9,0.27898]
[1732909564872,0.27899,3580.9,3580.8,1.52499]
[1732909568176,0.27899,3581.0,3580.9,0.27898]
[1732909569783,0.27899,3580.9,3580.8,1.52499]
[1732909571685,0.4081,3581.1,3580.8,1.246]
[1732909571881,0.27899,3581.0,3580.9,0.27898]
[1732909572681,0.4081,3581.1,3580.8,0.4087]
[1732909572884,0.69746,3581.0,3580.4,0.8218]
[1732909573189,0.27902,3580.6,3580.5,0.27902]
[1732909573382,0.27902,3580.6,3580.5,0.4322]
[1732909573789,0.27902,3580.6,3580.5,3.91902]
[1732909574291,0.27901,3580.6,3580.5,3.91902]
[1732909577184,0.27901,3580.6,3580.5,3.64]
[1732909577893,0.27901,3580.6,3580.5,3.91921806]
[1732909579189,0.27901,3580.6,3580.5,4.19823806]
[1732909580485,1.10555,3581.1,3580.7,0.27899]
[1732909580486,0.27901,3580.8,3580.7,0.27899]
[1732909580683,0.27899,3581.0,3580.9,0.27898]
[1732909581487,0.4081,3581.1,3580.5,4.18456806]
[1732909581488,0.68708,3581.1,3581.0,0.27898]
[1732909582193,0.68708,3581.1,3581.0,1.13308]
[1732909583193,3.90513,3581.7,3581.0,0.8541]
[1732909583490,0.27897,3581.4,3581.3,0.27895]
[1732909584189,0.4221,3581.6,3581.0,0.8541]
[1732909584393,0.27897,3581.2,3581.1,0.27896]
[1732909586201,0.27897,3581.1,3581.0,1.13308]
[1732909587398,0.69737,3581.5,3581.1,0.27896]
[1732909587399,0.27897,3581.2,3581.1,0.27896]
[1732909587596,0.69737,3581.5,3581.0,0.8541]
[1732909587900,0.27897,3581.1,3581.0,0.8541]
[1732909588102,0.6974,3581.4,3580.9,3.48678]
[1732909588103,0.27898,3581.0,3580.9,3.48678]
[1732909588297,0.72178,3581.0,3580.9,3.49678]
[1732909588599,0.72178,3581.0,3580.9,3.2178]
[1732909588910,0.72178,3581.0,3580.9,3.2078]
[1732909589206,0.72178,3581.0,3580.9,3.4869752]
[1732909592412,0.72178,3581.0,3580.9,0.2791752]
[1732909592607,0.72178,3581.0,3580.7,3.2078]
[1732909592608,0.4428,3581.0,3580.7,3.2078]
[1732909592807,0.279,3580.8,3580.7,3.2078]
[1732909593512,0.27901,3580.6,3580.5,0.55823806]
[1732909593705,0.27901,3580.6,3580.5,0.31921806]
[1732909593918,0.27901,3580.6,3580.5,0.59823806]
[1732909596415,0.27901,3580.6,3580.5,0.31921806]
[1732909597507,0.4108,3580.9,3580.5,0.27921806]
[1732909597713,0.27901,3580.8,3580.7,3.4868]
[1732909598006,0.27899,3581.0,3580.9,0.27898]
[1732909598913,0.27897,3581.3,3581.2,0.27896]
[1732909599214,0.27894,3581.6,3581.5,0.27893]
[1732909599716,0.4266,3581.8,3581.4,0.27895]
[1732909599717,0.27895,3581.5,3581.4,0.27895]
[1732909600125,0.27895,3581.5,3581.4,0.28895]
[1732909600616,0.27895,3581.5,3581.4,0.27895]
[1732909602918,0.27895,3581.5,3581.4,3.48675]
[1732909604018,0.27895,3581.5,3581.4,3.2078]
[1732909604819,10.9200478,3582.3,3581.4,3.2078]
[1732909605112,2.994,3582.8,3581.4,3.2078]
[1732909605113,0.4337,3582.8,3581.9,3.2078]
[1732909605309,0.4289,3582.7,3582.3,3.2078]
[1732909606115,0.70775,3582.7,3582.3,3.48667]
[1732909606319,0.4289,3582.7,3582.3,3.2078]
[1732909607013,0.4289,3582.7,3582.3,3.48668]
[1732909607014,0.70775,3582.7,3582.3,3.48668]
[1732909607216,0.70775,3582.7,3581.4,3.90268317]
[1732909607217,2.41139168,3582.4,3581.9,3.2078]
[1732909607417,2.13252168,3582.6,3580.7,0.279]
[1732909607418,0.27897,3581.3,3580.7,0.279]
[1732909607619,0.4349,3581.2,3580.6,0.4153]
[1732909607812,3.2078,3581.3,3580.6,0.4153]
[1732909607813,3.2078,3581.3,3581.0,0.27898]
[1732909608011,3.2078,3581.3,3580.8,0.27915728]
[1732909608012,3.2078,3581.3,3581.1,0.27897]
[1732909608216,3.2078,3581.3,3580.9,0.4237]
[1732909608415,3.2078,3581.3,3581.0,0.27898]
[1732909608918,3.2078,3581.3,3581.1,0.27897]
[1732909609318,3.2078,3581.3,3581.2,0.4474]
[1732909609616,3.2078,3581.3,3581.2,0.72637]
[1732909611318,3.2078,3581.7,3581.6,0.27893]
[1732909612016,3.2078,3581.7,3581.3,0.4233]
[1732909612017,0.4521,3582.1,3581.9,0.2789]
[1732909612215,3.93599,3582.2,3581.9,0.2789]
[1732909612813,3.93599,3582.2,3582.0,0.7296]
[1732909613019,3.93599,3582.2,3582.0,0.4507]
[1732909613621,0.2789,3582.1,3582.0,0.4507]
[1732909614013,3.6571,3582.2,3581.3,0.4233]
[1732909614220,0.27894,3581.5,3581.4,0.4507]
[1732909615719,0.28532943,3581.5,3581.4,0.4507]
[1732909618215,0.00638943,3581.5,3581.4,0.72965]
[1732909618422,0.00638943,3581.5,3581.4,0.4507]
[1732909618423,0.28532943,3581.5,3581.4,0.4507]
[1732909618817,0.00638943,3581.5,3580.6,0.843]
[1732909619019,3.4868,3580.8,3580.7,0.4154]
[1732909619411,3.2078,3580.8,3580.7,0.4154]
[1732909619716,3.2078,3580.8,3580.7,0.6944]
[1732909619917,0.27899,3580.9,3580.7,0.6944]
[1732909620314,0.27899,3580.9,3580.8,0.279]
[1732909620515,3.2078,3581.3,3581.2,0.27897]
[1732909620820,0.00638943,3581.5,3581.2,0.41]
[1732909621016,0.00638943,3581.5,3581.4,0.27895]
[1732909621319,3.2078,3581.8,3581.7,0.27893]
[1732909622322,3.2078,3582.6,3581.7,0.43]
[1732909622517,3.48666,3582.6,3582.5,0.27886]
[1732909623825,3.2078,3582.6,3582.5,0.27886]
[1732909624323,0.27882,3583.2,3583.1,0.27881]
[1732909625122,0.27882,3583.1,3583.0,0.27882]
[1732909625517,0.27883,3583.0,3582.9,0.27883]
[1732909626212,0.27884,3582.8,3582.7,0.858]
[1732909626623,0.27884,3582.8,3582.7,0.4409]
[1732909626823,0.27884,3582.8,3582.7,0.71975]
[1732909627027,0.27884,3582.8,3582.7,0.4409]
[1732909629319,3.2078,3583.0,3582.1,0.69019313]
[1732909629516,0.2789,3582.0,3581.9,0.72911]
[1732909629817,3.2078,3582.5,3582.0,0.2789]
[1732909630022,0.2789,3582.2,3582.1,0.27889]
[1732909630420,0.2789,3582.1,3582.0,0.2789]
[1732909630616,3.2078,3582.5,3581.9,0.4502]
[1732909630924,0.2789,3582.1,3582.0,0.2789]
[1732909631326,0.2789,3582.0,3581.9,0.4502]
[1732909631823,0.2789,3582.0,3581.9,0.72911]
[1732909632120,0.2789,3582.0,3581.9,0.4502]
[1732909632516,0.27892,3581.8,3581.7,0.842]
[1732909633318,0.4386,3582.0,3581.5,0.27907937]
[1732909633520,1.13588,3582.0,3581.3,0.8646]
[1732909633822,0.27895,3581.4,3581.3,0.4219]
[1732909634423,0.27895,3581.4,3581.2,0.4256]
[1732909634424,0.27896,3581.3,3581.2,0.4256]
[1732909635022,0.27896,3581.3,3581.2,0.70457]
[1732909635320,0.27896,3581.3,3581.2,0.4256]
[1732909636514,3.90515,3581.6,3581.0,0.4334]
[1732909636515,0.27897,3581.1,3581.0,0.4334]
[1732909638217,0.27899,3580.9,3580.8,0.4243]
[1732909638820,3.2078,3581.2,3580.7,1.56797937]
[1732909639019,0.279,3580.8,3580.7,1.56797937]
[1732909639416,0.279,3580.7,3580.6,0.4236]
[1732909639830,0.279,3580.7,3580.6,0.70270741]
[1732909640019,0.27902,3580.5,3580.4,0.4418]
[1732909642226,0.27904,3580.2,3580.1,0.842]
[1732909642424,0.27904,3580.2,3580.1,0.4203]
[1732909645619,0.4516,3580.6,3580.0,0.4488]
[1732909645818,0.27905,3580.1,3580.0,0.4488]
[1732909658325,0.4279,3580.5,3580.0,0.4488]
[1732909658630,2.13252168,3581.1,3580.3,0.27903]
[1732909658631,0.27903,3580.4,3580.3,0.27903]
[1732909659032,0.27899,3580.9,3580.8,0.27899]
[1732909659533,0.279,3580.8,3580.7,0.279]
[1732909659736,0.279,3580.8,3580.7,0.6948]
[1732909660134,0.279,3580.8,3580.7,0.4158]
[1732909660636,0.279,3580.8,3580.7,0.6948]
[1732909661932,0.279,3580.8,3580.7,0.4158]